[Event "2026 European Womens Championship"]
[Site "Batumi, GE"]
[Date "2026.06.05"]
[Round "11"]
[White "Sivanandan, Bodhana"]
[Black "Gueci, Tea"]
[Result "1-0"]
[Board "49"]
[TimeControl "5400+30"]
[WhiteFideId "497592"]
[BlackFideId "872342"]
[WhiteElo "2374"]
[BlackElo "2160"]
[WhiteTitle "FM"]
[BlackTitle "WIM"]
[WhiteClock "0:04:42"]
[BlackClock "0:01:47"]
[Variant "Standard"]
[Termination "forfeit"]

1. e4 {[%clk 1:28:24]}  c5 {[%clk 1:30:57]} 2. Nf3 {[%clk 1:28:36]}  e6 {[%clk 1:31:23]} 3. g3 {[%clk 1:28:42]}  Nc6 {[%clk 1:31:49]}
4. Bg2 {[%clk 1:28:41]}  Nf6 {[%clk 1:32:13]} 5. Nc3 {[%clk 1:28:43]}  Be7 {[%clk 1:32:22]} 6. O-O {[%clk 1:28:44]}  d6 {[%clk 1:32:49]}
7. d4 {[%clk 1:28:28]}  cxd4 {[%clk 1:33:14]} 8. Nxd4 {[%clk 1:28:46]}  O-O {[%clk 1:33:35]} 9. Re1 {[%clk 1:25:14]}  Nxd4 {[%clk 1:33:50]}
10. Qxd4 {[%clk 1:25:34]}  Bd7 {[%clk 1:34:16]} 11. Bg5 {[%clk 1:16:55]}  Qc7 {[%clk 1:10:36]} 12. Rad1 {[%clk 1:15:21]}  Rfd8 {[%clk 1:00:08]}
13. Qd3 {[%clk 1:08:14]}  Bc6 {[%clk 0:55:30]} 14. Qe2 {[%clk 0:55:05]}  h6 {[%clk 0:52:13]} 15. Bf4 {[%clk 0:53:38]}  e5 {[%clk 0:50:37]}
16. Be3 {[%clk 0:50:19]}  b5 {[%clk 0:47:46]} 17. a3 {[%clk 0:43:33]}  Rab8 {[%clk 0:36:12]} 18. Qd3 {[%clk 0:37:08]}  Rdc8 {[%clk 0:29:01]}
19. Bh3 {[%clk 0:33:01]}  Bd7 {[%clk 0:23:33]} 20. Bxd7 {[%clk 0:33:03]}  Qxd7 {[%clk 0:23:59]} 21. Rd2 {[%clk 0:26:32]}  Rc4 {[%clk 0:20:30]}
22. f3 {[%clk 0:20:53]}  Rbc8 {[%clk 0:20:57]} 23. Ree2 {[%clk 0:20:20]}  a6 {[%clk 0:10:55]} 24. Nd5 {[%clk 0:19:46]}  Nxd5 {[%clk 0:11:16]}
25. Qxd5 {[%clk 0:20:03]}  Qe6 {[%clk 0:11:07]} 26. c3 {[%clk 0:18:47]}  Qg6 {[%clk 0:09:39]} 27. Qb7 {[%clk 0:17:53]}  Qf6 {[%clk 0:08:36]}
28. Kg2 {[%clk 0:15:20]}  R4c6 {[%clk 0:08:51]} 29. Qd7 {[%clk 0:15:06]}  Qe6 {[%clk 0:06:55]} 30. Qxe6 {[%clk 0:15:23]}  fxe6 {[%clk 0:07:22]}
31. f4 {[%clk 0:11:19]}  Bf6 {[%clk 0:06:10]} 32. Rd3 {[%clk 0:10:43]}  Kf7 {[%clk 0:04:58]} 33. Kf3 {[%clk 0:09:27]}  Ke7 {[%clk 0:03:46]}
34. Kg4 {[%clk 0:07:16]}  Rc4 {[%clk 0:03:19]} 35. Bd2 {[%clk 0:05:43]}  g6 {[%clk 0:02:00]} 36. fxe5 {[%clk 0:04:43]}  h5+ {[%clk 0:02:25]}
37. Kf3 {[%clk 0:04:31]}  Bxe5 {[%clk 0:02:51]} 38. Bg5+ {[%clk 0:04:35]}  Kd7 {[%clk 0:02:26]} 39. Bf4 {[%clk 0:03:53]}  Rf8 {[%clk 0:02:19]}
40. Ke3 {[%clk 0:03:59]}  Bxf4+ {[%clk 0:02:07]} 41. gxf4 {[%clk 0:04:18]}  d5 {[%clk 0:28:37]} 42. Rd4 {[%clk 0:27:41]}  Ke7 {[%clk 0:21:05]}
43. Rg2 {[%clk 0:25:23]}  Rxd4 {[%clk 0:16:20]} 44. cxd4 {[%clk 0:25:39]}  dxe4 {[%clk 0:16:16]} 45. Rxg6 {[%clk 0:22:49]}  Rc8 {[%clk 0:16:05]}
46. Rg2 {[%clk 0:22:27]}  Rc1 {[%clk 0:13:23]} 47. Kxe4 {[%clk 0:21:32]}  Kf6 {[%clk 0:11:11]} 48. Re2 {[%clk 0:16:08]}  h4 {[%clk 0:03:33]}
49. h3 {[%clk 0:08:08]}  b4 {[%clk 0:01:51]} 50. axb4 {[%clk 0:07:06]}  Rc4 {[%clk 0:02:16]} 51. Re3 {[%clk 0:07:00]}  Rxb4 {[%clk 0:02:39]}
52. b3 {[%clk 0:07:23]}  a5 {[%clk 0:02:45]} 53. Rc3 {[%clk 0:06:52]}  a4 {[%clk 0:02:40]} 54. bxa4 {[%clk 0:07:16]}  Rxa4 {[%clk 0:03:07]}
55. Rc6 {[%clk 0:07:42]}  Ra5 {[%clk 0:00:57]} 56. Rb6 {[%clk 0:05:12]}  Rd5 {[%clk 0:00:56]} 57. Rb7 {[%clk 0:04:36]}  Rh5 {[%clk 0:00:45]}
58. Rd7 {[%clk 0:04:42]}  Rf5 {[%clk 0:00:32]} 59. Rh7 {[%clk 0:05:00]}  Ra5 {[%clk 0:00:47]} 60. Rxh4 {[%clk 0:04:15]}  Ra3 {[%clk 0:00:59]}
61. Rh6+ {[%clk 0:04:06]}  Kf7 {[%clk 0:01:15]} 62. f5 {[%clk 0:03:50]}  exf5+ {[%clk 0:01:26]} 63. Kxf5 {[%clk 0:04:14]}  Kg7 {[%clk 0:01:26]}
64. Rh4 {[%clk 0:04:27]}  Ra5+ {[%clk 0:00:57]} 65. Ke6 {[%clk 0:04:44]}  Ra6+ {[%clk 0:01:12]} 66. Ke5 {[%clk 0:05:08]}  Ra4 {[%clk 0:00:50]}
67. Rg4+ {[%clk 0:05:26]}  Kf7 {[%clk 0:01:14]} 68. d5 {[%clk 0:05:50]}  Ra3 {[%clk 0:01:32]} 69. h4 {[%clk 0:06:08]}  Rh3 {[%clk 0:01:45]}
70. Kd6 {[%clk 0:04:20]}  Kf6 {[%clk 0:01:47]} 71. Rf4 {[%clk 0:04:42]} 1-0

[Event "2026 European Womens Championship"]
[Site "Batumi, GE"]
[Date "2026.06.05"]
[Round "11"]
[White "Mkrtchyan, Anahit H."]
[Black "Szczotka, Klara"]
[Result "1-0"]
[Board "50"]
[TimeControl "5400+30"]
[WhiteFideId "13314858"]
[BlackFideId "21858845"]
[WhiteElo "2107"]
[BlackElo "2241"]
[BlackTitle "WFM"]
[WhiteClock "0:02:34"]
[BlackClock "0:03:50"]
[Variant "Standard"]

1. e4 {[%clk 1:30:51]}  c5 {[%clk 1:30:50]} 2. Nf3 {[%clk 1:31:15]}  d6 {[%clk 1:31:17]} 3. d4 {[%clk 1:31:39]}  cxd4 {[%clk 1:31:40]}
4. Nxd4 {[%clk 1:32:04]}  Nf6 {[%clk 1:32:03]} 5. Nc3 {[%clk 1:32:30]}  a6 {[%clk 1:32:26]} 6. Bg5 {[%clk 1:32:48]}  Nbd7 {[%clk 1:32:50]}
7. Bc4 {[%clk 1:32:34]}  Qb6 {[%clk 1:32:52]} 8. Bb3 {[%clk 1:25:56]}  e6 {[%clk 1:31:55]} 9. Qd2 {[%clk 1:16:28]}  Be7 {[%clk 1:31:36]}
10. O-O-O {[%clk 1:14:02]}  Qc7 {[%clk 1:26:33]} 11. Bxe6 {[%clk 1:10:21]}  fxe6 {[%clk 1:15:24]} 12. Nxe6 {[%clk 1:10:40]}  Qa5 {[%clk 1:15:17]}
13. Nxg7+ {[%clk 1:10:24]}  Kf7 {[%clk 1:15:18]} 14. Nf5 {[%clk 1:09:35]}  Bf8 {[%clk 1:13:12]} 15. f4 {[%clk 1:06:00]}  Nxe4 {[%clk 0:56:07]}
16. Nxe4 {[%clk 1:04:50]}  Qxf5 {[%clk 0:56:25]} 17. Nxd6+ {[%clk 1:03:39]}  Bxd6 {[%clk 0:56:49]} 18. Qxd6 {[%clk 1:04:02]}  Re8 {[%clk 0:43:58]}
19. Rhe1 {[%clk 0:57:45]}  Re6 {[%clk 0:41:04]} 20. Qc7 {[%clk 0:54:21]}  Kg8 {[%clk 0:29:11]} 21. g4 {[%clk 0:49:37]}  Qf7 {[%clk 0:24:37]}
22. f5 {[%clk 0:48:34]}  Rc6 {[%clk 0:24:09]} 23. Qd8+ {[%clk 0:48:19]}  Nf8 {[%clk 0:24:32]} 24. Qd4 {[%clk 0:32:21]}  Rc4 {[%clk 0:22:48]}
25. Qg1 {[%clk 0:24:39]}  Rc7 {[%clk 0:09:43]} 26. Rd8 {[%clk 0:20:43]}  Qc4 {[%clk 0:08:44]} 27. Qf2 {[%clk 0:13:10]}  Rf7 {[%clk 0:06:53]}
28. Bh6 {[%clk 0:11:04]}  Qc6 {[%clk 0:04:35]} 29. Qd2 {[%clk 0:09:08]}  Qf6 {[%clk 0:01:06]} 30. Rd6 {[%clk 0:02:22]}  Qh4 {[%clk 0:00:55]}
31. Re8 {[%clk 0:01:24]}  Qxg4 {[%clk 0:00:42]} 32. Rdd8 {[%clk 0:00:43]}  Qg1+ {[%clk 0:00:40]} 33. Qd1 {[%clk 0:00:42]}  Qxd1+ {[%clk 0:00:41]}
34. Kxd1 {[%clk 0:01:00]}  Bd7 {[%clk 0:00:41]} 35. Rxa8 {[%clk 0:01:19]}  Bxe8 {[%clk 0:01:08]} 36. Rxe8 {[%clk 0:01:43]}  Rxf5 {[%clk 0:01:36]}
37. Ke2 {[%clk 0:01:32]}  Rf6 {[%clk 0:02:03]} 38. Rxf8+ {[%clk 0:01:52]}  Rxf8 {[%clk 0:02:29]} 39. Bxf8 {[%clk 0:02:16]}  Kxf8 {[%clk 0:02:57]}
40. Kf3 {[%clk 0:02:23]}  Ke7 {[%clk 0:03:03]} 41. Kg4 {[%clk 0:02:25]}  a5 {[%clk 0:02:02]} 42. Kg5 {[%clk 0:01:35]}  Kf7 {[%clk 0:02:20]}
43. Kh6 {[%clk 0:01:11]}  Kg8 {[%clk 0:02:46]} 44. a4 {[%clk 0:01:34]}  Kh8 {[%clk 0:02:25]} 45. c3 {[%clk 0:01:38]}  Kg8 {[%clk 0:02:53]}
46. b4 {[%clk 0:01:54]}  b6 {[%clk 0:03:21]} 47. bxa5 {[%clk 0:02:11]}  bxa5 {[%clk 0:03:50]} 48. h4 {[%clk 0:02:34]} 1-0

[Event "2026 European Womens Championship"]
[Site "Batumi, GE"]
[Date "2026.06.05"]
[Round "11"]
[White "Aghaverdiyeva, Maryam"]
[Black "Peglau, Charis"]
[Result "1/2-1/2"]
[Board "51"]
[TimeControl "5400+30"]
[WhiteFideId "13452509"]
[BlackFideId "16219996"]
[WhiteElo "2103"]
[BlackElo "2238"]
[WhiteTitle "WFM"]
[BlackTitle "WFM"]
[WhiteClock "0:20:19"]
[BlackClock "0:02:18"]
[Variant "Standard"]

1. e4 {[%clk 1:30:44]}  c6 {[%clk 1:30:56]} 2. d4 {[%clk 1:30:20]}  d5 {[%clk 1:31:20]} 3. exd5 {[%clk 1:30:34]}  cxd5 {[%clk 1:31:47]}
4. c4 {[%clk 1:30:56]}  Nf6 {[%clk 1:32:07]} 5. Nc3 {[%clk 1:31:17]}  g6 {[%clk 1:32:25]} 6. Qb3 {[%clk 1:31:29]}  Bg7 {[%clk 1:32:43]}
7. cxd5 {[%clk 1:31:52]}  O-O {[%clk 1:33:01]} 8. g3 {[%clk 1:32:16]}  Qb6 {[%clk 1:26:34]} 9. Bg2 {[%clk 1:29:03]}  Na6 {[%clk 1:24:39]}
10. Nge2 {[%clk 1:28:29]}  Rd8 {[%clk 1:22:37]} 11. O-O {[%clk 1:25:09]}  Qxb3 {[%clk 1:16:59]} 12. axb3 {[%clk 1:25:28]}  Nb4 {[%clk 1:17:13]}
13. d6 {[%clk 1:21:17]}  Rxd6 {[%clk 1:08:04]} 14. Bf4 {[%clk 1:20:55]}  Rd8 {[%clk 1:05:06]} 15. Bc7 {[%clk 1:17:39]}  Rf8 {[%clk 0:57:05]}
16. Rfd1 {[%clk 1:12:32]}  Ne8 {[%clk 0:41:22]} 17. Bf4 {[%clk 1:03:49]}  Nd6 {[%clk 0:33:20]} 18. Bxd6 {[%clk 0:35:22]}  exd6 {[%clk 0:33:49]}
19. Nb5 {[%clk 0:35:45]}  Bg4 {[%clk 0:32:50]} 20. Rd2 {[%clk 0:34:53]}  d5 {[%clk 0:23:18]} 21. Nec3 {[%clk 0:33:19]}  Be6 {[%clk 0:20:50]}
22. Rxa7 {[%clk 0:31:54]}  Rxa7 {[%clk 0:20:56]} 23. Nxa7 {[%clk 0:32:18]}  Ra8 {[%clk 0:18:45]} 24. Nab5 {[%clk 0:32:36]}  Ra1+ {[%clk 0:18:47]}
25. Rd1 {[%clk 0:32:58]}  Rxd1+ {[%clk 0:17:19]} 26. Nxd1 {[%clk 0:33:22]}  Nc6 {[%clk 0:16:38]} 27. Ndc3 {[%clk 0:25:43]}  Nxd4 {[%clk 0:16:47]}
28. Nxd4 {[%clk 0:25:53]}  Bxd4 {[%clk 0:17:15]} 29. Bxd5 {[%clk 0:25:57]}  Bxd5 {[%clk 0:17:25]} 30. Nxd5 {[%clk 0:26:21]}  Bxb2 {[%clk 0:17:49]}
31. Kf1 {[%clk 0:26:18]}  f5 {[%clk 0:17:50]} 32. Ke2 {[%clk 0:26:23]}  Bd4 {[%clk 0:17:39]} 33. f3 {[%clk 0:25:46]}  Kf7 {[%clk 0:17:41]}
34. Kd3 {[%clk 0:25:33]}  Bg1 {[%clk 0:17:07]} 35. h3 {[%clk 0:25:51]}  Bf2 {[%clk 0:16:01]} 36. g4 {[%clk 0:25:26]}  Ke6 {[%clk 0:15:25]}
37. Nf4+ {[%clk 0:25:18]}  Ke5 {[%clk 0:15:30]} 38. Ne2 {[%clk 0:25:23]}  Bc5 {[%clk 0:04:14]} 39. f4+ {[%clk 0:16:27]}  Kf6 {[%clk 0:04:16]}
40. g5+ {[%clk 0:15:14]}  Ke6 {[%clk 0:01:28]} 41. Kc4 {[%clk 0:13:20]}  Be3 {[%clk 0:00:40]} 42. b4 {[%clk 0:11:27]}  Kd6 {[%clk 0:27:17]}
43. b5 {[%clk 0:37:48]}  Bd2 {[%clk 0:19:31]} 44. Kd3 {[%clk 0:37:04]}  Bb4 {[%clk 0:19:39]} 45. Kc4 {[%clk 0:37:07]}  Be1 {[%clk 0:19:55]}
46. Nd4 {[%clk 0:36:57]}  Bd2 {[%clk 0:17:16]} 47. Ne2 {[%clk 0:37:05]}  Ba5 {[%clk 0:16:47]} 48. Nd4 {[%clk 0:37:10]}  Bd2 {[%clk 0:14:50]}
49. Ne2 {[%clk 0:37:31]}  Kc7 {[%clk 0:11:45]} 50. Kd3 {[%clk 0:35:20]}  Be1 {[%clk 0:11:47]} 51. Kc4 {[%clk 0:34:59]}  Kd6 {[%clk 0:07:51]}
52. Nd4 {[%clk 0:35:09]}  Bf2 {[%clk 0:06:36]} 53. Ne2 {[%clk 0:35:29]}  Bc5 {[%clk 0:06:01]} 54. Nd4 {[%clk 0:35:36]}  Ba3 {[%clk 0:06:09]}
55. Ne2 {[%clk 0:35:24]}  Bb2 {[%clk 0:06:27]} 56. Nd4 {[%clk 0:33:17]}  Ba1 {[%clk 0:06:02]} 57. Nb3 {[%clk 0:33:40]}  Bb2 {[%clk 0:04:52]}
58. Nd4 {[%clk 0:34:05]}  b6 {[%clk 0:03:42]} 59. Nb3 {[%clk 0:22:42]}  Ke6 {[%clk 0:03:01]} 60. Nd4+ {[%clk 0:22:39]}  Kd6 {[%clk 0:03:30]}
61. Nb3 {[%clk 0:22:55]}  Bg7 {[%clk 0:03:52]} 62. Nd4 {[%clk 0:19:47]}  h6 {[%clk 0:03:15]} 63. gxh6 {[%clk 0:19:26]}  Bxh6 {[%clk 0:03:43]}
64. Ne2 {[%clk 0:19:50]}  Bg7 {[%clk 0:03:27]} 65. Nd4 {[%clk 0:19:37]}  Bf6 {[%clk 0:03:36]} 66. Nf3 {[%clk 0:19:54]}  Ke6 {[%clk 0:03:06]}
67. Nd4+ {[%clk 0:19:20]}  Kd6 {[%clk 0:03:19]} 68. Nf3 {[%clk 0:19:46]}  Ke6 {[%clk 0:02:39]} 69. Nd4+ {[%clk 0:20:05]}  Kf7 {[%clk 0:01:03]}
70. Kd5 {[%clk 0:20:19]}  Bxd4 {[%clk 0:01:25]} 71. Kxd4 {[%clk 0:20:44]}  Ke6 {[%clk 0:01:50]} 72. h4 {[%clk 0:20:19]}  Kd6 {[%clk 0:02:18]} 1/2-1/2

[Event "2026 European Womens Championship"]
[Site "Batumi, GE"]
[Date "2026.06.05"]
[Round "11"]
[White "Liashkevich, Lizaveta"]
[Black "Kirtadze, Anastasia"]
[Result "0-1"]
[Board "52"]
[TimeControl "5400+30"]
[WhiteFideId "13518658"]
[BlackFideId "13622714"]
[WhiteElo "2079"]
[BlackElo "2233"]
[WhiteTitle "WFM"]
[BlackTitle "WIM"]
[WhiteClock "0:02:04"]
[BlackClock "0:12:59"]
[Variant "Standard"]

1. d4 {[%clk 1:30:56]}  Nf6 {[%clk 1:30:56]} 2. c4 {[%clk 1:31:23]}  e6 {[%clk 1:31:21]} 3. Nf3 {[%clk 1:31:49]}  Bb4+ {[%clk 1:31:46]}
4. Bd2 {[%clk 1:32:16]}  Qe7 {[%clk 1:32:11]} 5. a3 {[%clk 1:31:37]}  Bxd2+ {[%clk 1:32:01]} 6. Qxd2 {[%clk 1:31:44]}  d6 {[%clk 1:25:37]}
7. Nc3 {[%clk 1:29:21]}  O-O {[%clk 1:22:24]} 8. e4 {[%clk 1:28:37]}  e5 {[%clk 1:20:41]} 9. d5 {[%clk 1:28:18]}  a5 {[%clk 1:18:42]}
10. b3 {[%clk 1:24:05]}  h6 {[%clk 1:15:36]} 11. Qc2 {[%clk 1:15:17]}  Nh5 {[%clk 1:05:27]} 12. Be2 {[%clk 1:08:42]}  Nf4 {[%clk 0:58:28]}
13. O-O {[%clk 1:04:09]}  f5 {[%clk 0:52:29]} 14. Bd3 {[%clk 0:52:34]}  Nxd3 {[%clk 0:46:33]} 15. Qxd3 {[%clk 0:52:58]}  f4 {[%clk 0:46:59]}
16. Nd2 {[%clk 0:46:18]}  g5 {[%clk 0:45:21]} 17. f3 {[%clk 0:46:09]}  h5 {[%clk 0:44:50]} 18. Rfc1 {[%clk 0:42:58]}  g4 {[%clk 0:39:10]}
19. Ne2 {[%clk 0:34:42]}  Na6 {[%clk 0:33:49]} 20. Rab1 {[%clk 0:28:33]}  Nc5 {[%clk 0:26:51]} 21. Qc3 {[%clk 0:25:11]}  gxf3 {[%clk 0:22:20]}
22. Qxf3 {[%clk 0:21:21]}  Bg4 {[%clk 0:21:18]} 23. Qf1 {[%clk 0:21:40]}  f3 {[%clk 0:18:27]} 24. gxf3 {[%clk 0:11:21]}  Qg5 {[%clk 0:16:06]}
25. Qg2 {[%clk 0:09:44]}  Qxd2 {[%clk 0:14:29]} 26. Rc3 {[%clk 0:02:22]}  Nd3 {[%clk 0:13:08]} 27. Rf1 {[%clk 0:01:37]}  Qe3+ {[%clk 0:12:37]}
28. Kh1 {[%clk 0:02:01]}  Rxf3 {[%clk 0:12:34]} 29. Rxf3 {[%clk 0:02:04]}  Qxf3 {[%clk 0:12:59]} 0-1

[Event "2026 European Womens Championship"]
[Site "Batumi, GE"]
[Date "2026.06.05"]
[Round "11"]
[White "Avetisyan, Ani"]
[Black "Rodriguez Redondo, Adhara"]
[Result "1-0"]
[Board "53"]
[TimeControl "5400+30"]
[WhiteFideId "13319035"]
[BlackFideId "32065698"]
[WhiteElo "2052"]
[BlackElo "2200"]
[BlackTitle "WFM"]
[WhiteClock "0:02:12"]
[BlackClock "0:00:32"]
[Variant "Standard"]

1. d4 {[%clk 1:30:52]}  d5 {[%clk 1:30:53]} 2. c4 {[%clk 1:31:09]}  e6 {[%clk 1:31:18]} 3. Nf3 {[%clk 1:31:31]}  Nf6 {[%clk 1:31:40]}
4. g3 {[%clk 1:31:59]}  Be7 {[%clk 1:30:59]} 5. Bg2 {[%clk 1:31:27]}  O-O {[%clk 1:31:17]} 6. O-O {[%clk 1:31:50]}  dxc4 {[%clk 1:31:20]}
7. Qc2 {[%clk 1:32:07]}  c6 {[%clk 1:31:19]} 8. a4 {[%clk 1:29:20]}  a5 {[%clk 1:24:31]} 9. Qxc4 {[%clk 1:28:42]}  Na6 {[%clk 1:14:38]}
10. Nc3 {[%clk 1:25:22]}  Nb4 {[%clk 1:12:48]} 11. e4 {[%clk 1:19:11]}  b6 {[%clk 1:07:43]} 12. Qb3 {[%clk 1:12:32]}  h6 {[%clk 1:05:20]}
13. Rd1 {[%clk 1:11:18]}  Bb7 {[%clk 1:02:50]} 14. Ne5 {[%clk 1:06:30]}  Nd7 {[%clk 0:45:46]} 15. Nc4 {[%clk 1:02:36]}  Ba6 {[%clk 0:43:41]}
16. e5 {[%clk 0:47:09]}  Rc8 {[%clk 0:33:32]} 17. Be3 {[%clk 0:37:07]}  Bxc4 {[%clk 0:28:32]} 18. Qxc4 {[%clk 0:35:28]}  Nc2 {[%clk 0:27:34]}
19. Rac1 {[%clk 0:35:47]}  Nxe3 {[%clk 0:27:58]} 20. fxe3 {[%clk 0:36:14]}  Bb4 {[%clk 0:20:43]} 21. Na2 {[%clk 0:34:28]}  Qg5 {[%clk 0:19:23]}
22. Qb3 {[%clk 0:31:55]}  c5 {[%clk 0:19:07]} 23. Nxb4 {[%clk 0:28:12]}  axb4 {[%clk 0:18:47]} 24. Rc4 {[%clk 0:23:43]}  Rc7 {[%clk 0:16:11]}
25. Rdc1 {[%clk 0:20:16]}  Rfc8 {[%clk 0:16:36]} 26. Qd3 {[%clk 0:20:02]}  h5 {[%clk 0:13:20]} 27. Qe4 {[%clk 0:19:40]}  g6 {[%clk 0:11:59]}
28. Qf4 {[%clk 0:18:31]}  Qe7 {[%clk 0:12:03]} 29. b3 {[%clk 0:18:04]}  Kg7 {[%clk 0:11:45]} 30. Be4 {[%clk 0:16:16]}  Nf8 {[%clk 0:09:33]}
31. Kg2 {[%clk 0:12:33]}  Qd7 {[%clk 0:09:07]} 32. Qf1 {[%clk 0:10:11]}  Qe7 {[%clk 0:08:27]} 33. R1c2 {[%clk 0:09:36]}  Nd7 {[%clk 0:07:46]}
34. h4 {[%clk 0:09:20]}  Nb8 {[%clk 0:07:35]} 35. Kh3 {[%clk 0:03:54]}  Kg8 {[%clk 0:07:34]} 36. g4 {[%clk 0:02:23]}  hxg4+ {[%clk 0:07:41]}
37. Kxg4 {[%clk 0:02:50]}  Nd7 {[%clk 0:06:13]} 38. Kg3 {[%clk 0:01:08]}  Kg7 {[%clk 0:06:03]} 39. Qf4 {[%clk 0:00:46]}  Rh8 {[%clk 0:04:31]}
40. Rxb4 {[%clk 0:00:36]}  Rh5 {[%clk 0:01:42]} 41. Rbc4 {[%clk 0:00:35]}  Rc8 {[%clk 0:00:58]} 42. Bf3 {[%clk 0:18:36]}  g5 {[%clk 0:21:59]}
43. hxg5 {[%clk 0:18:10]}  Rxg5+ {[%clk 0:22:19]} 44. Kf2 {[%clk 0:18:30]}  Rh8 {[%clk 0:20:06]} 45. Rc1 {[%clk 0:17:32]}  Rh6 {[%clk 0:12:45]}
46. Qxg5+ {[%clk 0:16:27]}  Qxg5 {[%clk 0:12:57]} 47. Rg1 {[%clk 0:16:56]}  Rh2+ {[%clk 0:10:29]} 48. Kf1 {[%clk 0:17:16]}  Qxg1+ {[%clk 0:10:32]}
49. Kxg1 {[%clk 0:17:45]}  Rb2 {[%clk 0:10:43]} 50. Rc3 {[%clk 0:17:11]}  cxd4 {[%clk 0:08:28]} 51. exd4 {[%clk 0:17:32]}  Rd2 {[%clk 0:08:32]}
52. Rc4 {[%clk 0:16:24]}  Nf8 {[%clk 0:08:06]} 53. Rb4 {[%clk 0:14:11]}  Ng6 {[%clk 0:08:10]} 54. Rxb6 {[%clk 0:12:23]}  Nf4 {[%clk 0:05:47]}
55. a5 {[%clk 0:08:59]}  Kg6 {[%clk 0:05:21]} 56. Rb4 {[%clk 0:05:05]}  Kg5 {[%clk 0:04:32]} 57. a6 {[%clk 0:03:19]}  Nh3+ {[%clk 0:03:30]}
58. Kf1 {[%clk 0:03:16]}  Kf4 {[%clk 0:01:27]} 59. a7 {[%clk 0:02:37]}  Ke3 {[%clk 0:00:32]} 60. a8=Q {[%clk 0:02:12]} 1-0

[Event "2026 European Womens Championship"]
[Site "Batumi, GE"]
[Date "2026.06.05"]
[Round "11"]
[White "Avelino, Camila Biscaya"]
[Black "Calzetta Ruiz, Monica"]
[Result "1-0"]
[Board "54"]
[TimeControl "5400+30"]
[WhiteFideId "1938975"]
[BlackFideId "2204185"]
[WhiteElo "1937"]
[BlackElo "2199"]
[WhiteTitle "WFM"]
[BlackTitle "WGM"]
[WhiteClock "0:02:22"]
[BlackClock "0:03:15"]
[Variant "Standard"]

1. e4 {[%clk 1:30:52]}  c5 {[%clk 1:30:54]} 2. Nf3 {[%clk 1:31:15]}  g6 {[%clk 1:31:11]} 3. d4 {[%clk 1:31:38]}  cxd4 {[%clk 1:31:36]}
4. Nxd4 {[%clk 1:31:55]}  Nc6 {[%clk 1:31:26]} 5. Nc3 {[%clk 1:32:13]}  Bg7 {[%clk 1:31:38]} 6. Nxc6 {[%clk 1:32:11]}  bxc6 {[%clk 1:31:47]}
7. Bc4 {[%clk 1:32:32]}  d6 {[%clk 1:15:10]} 8. O-O {[%clk 1:32:53]}  Nf6 {[%clk 1:15:13]} 9. e5 {[%clk 1:31:50]}  dxe5 {[%clk 1:12:36]}
10. Qxd8+ {[%clk 1:32:09]}  Kxd8 {[%clk 1:13:03]} 11. Re1 {[%clk 1:31:57]}  e6 {[%clk 1:08:34]} 12. Rxe5 {[%clk 1:08:14]}  Nd5 {[%clk 1:08:01]}
13. Re2 {[%clk 1:07:43]}  Nxc3 {[%clk 1:07:06]} 14. bxc3 {[%clk 1:07:55]}  Bxc3 {[%clk 0:59:52]} 15. Rb1 {[%clk 0:56:50]}  Re8 {[%clk 0:46:55]}
16. Rb3 {[%clk 0:54:47]}  Bg7 {[%clk 0:47:04]} 17. Rf3 {[%clk 0:32:17]}  f6 {[%clk 0:43:01]} 18. Ba3 {[%clk 0:32:25]}  Kc7 {[%clk 0:29:50]}
19. Rd3 {[%clk 0:30:51]}  Bf8 {[%clk 0:27:35]} 20. Bxf8 {[%clk 0:28:20]}  Rxf8 {[%clk 0:28:02]} 21. Bxe6 {[%clk 0:28:38]}  Re8 {[%clk 0:26:16]}
22. Rde3 {[%clk 0:28:13]}  Bxe6 {[%clk 0:21:56]} 23. Rxe6 {[%clk 0:28:18]}  Rxe6 {[%clk 0:22:14]} 24. Rxe6 {[%clk 0:28:33]}  Rd8 {[%clk 0:22:28]}
25. Kf1 {[%clk 0:26:48]}  Rd2 {[%clk 0:19:09]} 26. Rxf6 {[%clk 0:23:17]}  Rxc2 {[%clk 0:19:36]} 27. Rf7+ {[%clk 0:23:00]}  Kb6 {[%clk 0:20:03]}
28. a4 {[%clk 0:18:43]}  c5 {[%clk 0:11:08]} 29. Rxh7 {[%clk 0:08:01]}  c4 {[%clk 0:11:17]} 30. Rg7 {[%clk 0:06:07]}  c3 {[%clk 0:11:07]}
31. Rxg6+ {[%clk 0:04:50]}  Ka5 {[%clk 0:10:03]} 32. Rg4 {[%clk 0:03:12]}  Ra2 {[%clk 0:03:33]} 33. Rc4 {[%clk 0:02:15]}  c2 {[%clk 0:02:41]}
34. Ke1 {[%clk 0:02:25]}  Ra1+ {[%clk 0:02:27]} 35. Kd2 {[%clk 0:02:47]}  Rg1 {[%clk 0:02:34]} 36. g3 {[%clk 0:02:23]}  Rg2 {[%clk 0:01:42]}
37. Rxc2 {[%clk 0:01:48]}  Rxh2 {[%clk 0:01:59]} 38. Ke3 {[%clk 0:02:00]}  Kxa4 {[%clk 0:02:03]} 39. Ra2+ {[%clk 0:02:09]}  Kb5 {[%clk 0:02:26]}
40. Rxa7 {[%clk 0:02:19]}  Kc5 {[%clk 0:02:55]} 41. Rd7 {[%clk 0:02:17]}  Kc6 {[%clk 0:03:06]} 42. Rd1 {[%clk 0:02:25]}  Rh8 {[%clk 0:03:25]}
43. f4 {[%clk 0:02:22]}  Re8+ {[%clk 0:03:15]} 44. Kf3 {[%clk 0:02:46]} 1-0

[Event "2026 European Womens Championship"]
[Site "Batumi, GE"]
[Date "2026.06.05"]
[Round "11"]
[White "Radikovic, Anamarija"]
[Black "Khurtsilava, Inga"]
[Result "0-1"]
[Board "55"]
[TimeControl "5400+30"]
[WhiteFideId "14546264"]
[BlackFideId "13600419"]
[WhiteElo "1974"]
[BlackElo "2175"]
[WhiteTitle "WFM"]
[BlackTitle "WGM"]
[WhiteClock "0:27:26"]
[BlackClock "0:46:02"]
[Variant "Standard"]

1. e4 {[%clk 1:30:57]}  c6 {[%clk 1:30:58]} 2. d4 {[%clk 1:31:22]}  d5 {[%clk 1:31:27]} 3. e5 {[%clk 1:31:46]}  Bf5 {[%clk 1:31:54]}
4. Be2 {[%clk 1:32:10]}  e6 {[%clk 1:32:07]} 5. Nf3 {[%clk 1:32:35]}  Nd7 {[%clk 1:32:16]} 6. O-O {[%clk 1:32:29]}  Ne7 {[%clk 1:32:35]}
7. c4 {[%clk 1:32:26]}  dxc4 {[%clk 1:32:07]} 8. Bxc4 {[%clk 1:32:16]}  Nb6 {[%clk 1:32:34]} 9. Bb3 {[%clk 1:32:12]}  Bg4 {[%clk 1:30:59]}
10. Nbd2 {[%clk 1:00:59]}  Bh5 {[%clk 1:18:24]} 11. Ne4 {[%clk 0:54:51]}  Nf5 {[%clk 1:18:02]} 12. h3 {[%clk 0:50:03]}  Bxf3 {[%clk 1:16:12]}
13. Qxf3 {[%clk 0:50:26]}  Nxd4 {[%clk 1:15:52]} 14. Qg4 {[%clk 0:49:50]}  h5 {[%clk 1:15:19]} 15. Qd1 {[%clk 0:48:36]}  Nxb3 {[%clk 1:15:31]}
16. axb3 {[%clk 0:48:02]}  Qxd1 {[%clk 1:14:52]} 17. Rxd1 {[%clk 0:48:27]}  Nd5 {[%clk 1:14:29]} 18. Be3 {[%clk 0:45:55]}  a6 {[%clk 1:14:29]}
19. Bc5 {[%clk 0:46:02]}  Bxc5 {[%clk 1:12:38]} 20. Nxc5 {[%clk 0:46:26]}  Rb8 {[%clk 1:12:49]} 21. Ra4 {[%clk 0:42:40]}  Ke7 {[%clk 1:11:33]}
22. Rad4 {[%clk 0:38:28]}  Rhd8 {[%clk 1:06:18]} 23. Kh2 {[%clk 0:32:41]}  a5 {[%clk 1:04:37]} 24. Kg3 {[%clk 0:27:51]}  b6 {[%clk 1:00:38]}
25. Ne4 {[%clk 0:28:08]}  Ra8 {[%clk 0:48:31]} 26. Nd6 {[%clk 0:19:13]}  c5 {[%clk 0:40:39]} 27. Rh4 {[%clk 0:16:14]}  g6 {[%clk 0:39:53]}
28. Kf3 {[%clk 0:14:07]}  f6 {[%clk 0:38:07]} 29. Nc4 {[%clk 0:13:18]}  b5 {[%clk 0:36:08]} 30. Na3 {[%clk 0:11:33]}  fxe5 {[%clk 0:34:27]}
31. Re4 {[%clk 0:11:49]}  Nc7 {[%clk 0:31:26]} 32. Rxd8 {[%clk 0:09:14]}  Rxd8 {[%clk 0:31:44]} 33. Rxe5 {[%clk 0:09:39]}  Rd3+ {[%clk 0:31:17]}
34. Re3 {[%clk 0:08:54]}  Rd2 {[%clk 0:30:19]} 35. Re2 {[%clk 0:09:10]}  Rd1 {[%clk 0:28:32]} 36. Kf4 {[%clk 0:03:13]}  Kf6 {[%clk 0:26:23]}
37. Rc2 {[%clk 0:02:51]}  Nd5+ {[%clk 0:25:52]} 38. Kg3 {[%clk 0:02:39]}  Rd3+ {[%clk 0:25:27]} 39. f3 {[%clk 0:02:59]}  Rxb3 {[%clk 0:24:09]}
40. Rxc5 {[%clk 0:03:21]}  Rxb2 {[%clk 0:23:40]} 41. Nxb5 {[%clk 0:03:27]}  a4 {[%clk 0:16:58]} 42. Nd4 {[%clk 0:27:26]}  h4+ {[%clk 0:46:02]} 0-1